fUSD/lending_fUSD_20260405
["ID","MTS","AMOUNT","RATE_DAILY","PERIOD"]
[419743459,1775350246068,-1000.0,0.00014247,2]
[419743460,1775350246078,-179.88810858,0.00014247,2]
[419743461,1775350246087,-1000.0,0.00014247,2]
[419743462,1775350246096,-1000.0,0.00014247,2]
[419743463,1775350246105,-1000.0,0.00014247,2]
[419743464,1775350246114,-1000.0,0.00014247,2]
[419743465,1775350246124,-1000.0,0.00014247,2]
[419743467,1775350246133,-1000.0,0.00014247,2]
[419743469,1775350246143,-189.63267035,0.00014247,2]
[419743471,1775350246152,-1000.0,0.00014247,2]
[419743472,1775350246161,-1000.0,0.00014247,2]
[419743473,1775350246171,-307.87812232,0.00014247,2]
[419743474,1775350246180,-1000.0,0.00014247,2]
[419743475,1775350246189,-1000.0,0.00014247,2]
[419743476,1775350246199,-1000.0,0.00014247,2]
[419743477,1775350246208,-627.55050466,0.00014247,2]
[419743478,1775350246217,-1000.0,0.00014247,2]
[419743479,1775350246226,-920.32389809,0.00014247,2]
[419743480,1775350246235,-501.76874276,0.00014247,2]
[419743481,1775350246245,-1000.0,0.00014247,2]
[419743482,1775350246255,-1000.0,0.00014247,2]
[419743483,1775350246264,-1000.0,0.00014247,2]
[419743484,1775350246274,-1000.0,0.00014247,2]
[419743485,1775350246285,-1000.0,0.00014247,2]
[419743486,1775350246295,-500.0,0.00014247,2]
[419743487,1775350246305,-1000.0,0.00014247,2]
[419743488,1775350246315,-392.10429392,0.00014247,2]
[419743489,1775350246325,-502.01968107,0.00014247,2]
[419743490,1775350246335,-1000.0,0.00014247,2]
[419743491,1775350246344,-211.98761601,0.00014247,2]
[419743492,1775350246353,-165.64274187,0.00014247,2]
[419743493,1775350246363,-1000.0,0.00014247,2]
[419743494,1775350246372,-1000.0,0.00014247,2]
[419743495,1775350246382,-1000.0,0.00014247,2]
[419743496,1775350246391,-1000.0,0.00014247,2]
[419743497,1775350246401,-1000.0,0.00014247,2]
[419743498,1775350246412,-500.0,0.00014247,2]
[419743499,1775350246422,-1000.0,0.00014247,2]
[419743500,1775350246431,-685.54126071,0.00014247,2]
[419743501,1775350246440,-1000.0,0.00014247,2]
[419743502,1775350246450,-1000.0,0.00014247,2]
[419743503,1775350246459,-4357.30512804,0.00014357,2]
[419743504,1775350246469,-5504.06,0.00014384,2]
[419743505,1775350246479,-150.0,0.000144,2]
[419743506,1775350246488,-150.0,0.000144,2]
[419743507,1775350246498,-150.0,0.000144,2]
[419743508,1775350246507,-150.0,0.000144,2]
[419743509,1775350246518,-150.0,0.000144,2]
[419743510,1775350246528,-150.0,0.000144,2]
[419743511,1775350246538,-150.0,0.000144,2]
[419743512,1775350246548,-150.0,0.000144,2]
[419743513,1775350246558,-150.0,0.000144,2]
[419743514,1775350246568,-150.0,0.000144,2]
[419743515,1775350246578,-150.0,0.000144,2]
[419743516,1775350246587,-150.0,0.000144,2]
[419743517,1775350246596,-150.0,0.000144,2]
[419743518,1775350246606,-150.0,0.000144,2]
[419743519,1775350246615,-150.0,0.000144,2]
[419743520,1775350246626,-1406.48,0.000144,2]
[419743521,1775350246636,-150.0,0.00014433,2]
[419743522,1775350246647,-150.0,0.00014434,2]
[419743523,1775350246656,-150.0,0.00014448,2]
[419743524,1775350246666,-733.7,0.00014456,2]
[419743525,1775350246676,-287.88,0.00014456,2]
[419743526,1775350246687,-600.0,0.00014457,2]
[419743527,1775350246697,-184.62,0.00014457,2]
[419743528,1775350246706,-150.0,0.00014459,2]
[419743529,1775350246715,-150.0,0.00014464,2]
[419743530,1775350246724,-150.0,0.00014465,2]
[419743531,1775350246734,-150.0,0.00014468,2]
[419743532,1775350246743,-160.0,0.00014488,2]
[419743533,1775350246753,-1394.112399,0.00014488,2]
[419743534,1775350246762,-150.0,0.00014489,2]
[419743535,1775350246772,-150.0,0.00014489,2]
[419743536,1775350246782,-150.0,0.00014497,2]
[419743537,1775350246791,-150.0,0.00014498,2]
[419743538,1775350246801,-150.0,0.00014502,2]
[419743539,1775350246812,-150.0,0.00014519,2]
[419743540,1775350246822,-150.0,0.00014528,2]
[419743541,1775350246831,-150.0,0.00014531,2]
[419743542,1775350246840,-150.0,0.00014536,2]
[419743543,1775350246849,-150.0,0.00014545,2]
[419743544,1775350246858,-150.0,0.00014563,2]
[419743546,1775350246868,-150.0,0.0001457,2]
[419743548,1775350246878,-150.0,0.00014578,2]
[419743549,1775350246887,-150.0,0.00014578,2]
[419743550,1775350246896,-150.0,0.00014578,2]
[419743551,1775350246905,-150.0,0.00014578,2]
[419743553,1775350246914,-983.0673444,0.00014581,2]
[419743554,1775350246923,-44309.71829211,0.00014591,2]
[419743556,1775350246932,-150.0,0.00014592,2]
[419743557,1775350246942,-150.0,0.00014594,2]
[419743558,1775350246951,-150.0,0.00014596,2]
[419743559,1775350246960,-150.0,0.000146,2]
[419743561,1775350246969,-150.0,0.00014604,2]
[419743562,1775350246979,-150.0,0.00014629,2]
[419743563,1775350246988,-150.0,0.00014637,2]
[419743564,1775350246997,-150.0,0.00014638,2]
[419743565,1775350247006,-150.0,0.00014642,2]
[419743566,1775350247015,-150.0,0.00014656,2]
[419743567,1775350247024,-150.0,0.00014661,2]
[419743568,1775350247034,-150.0,0.00014667,2]
[419743569,1775350247043,-150.0,0.00014667,2]
[419743570,1775350247052,-320.31,0.00014668,2]
[419743571,1775350247062,-150.0,0.00014672,2]
[419743572,1775350247071,-150.0,0.00014691,2]
[419743573,1775350247080,-150.0,0.00014694,2]
[419743574,1775350247090,-150.0,0.00014696,2]
[419743575,1775350247099,-150.0,0.00014706,2]
[419743576,1775350247108,-150.0,0.0001472,2]
[419743577,1775350247118,-150.0,0.00014727,2]
[419743578,1775350247127,-150.0,0.00014739,2]
[419743579,1775350247136,-150.0,0.0001474,2]
[419743580,1775350247146,-150.0,0.00014756,2]
[419743581,1775350247155,-150.0,0.00014756,2]
[419743582,1775350247165,-150.0,0.00014756,2]
[419743583,1775350247174,-150.0,0.00014756,2]
[419743584,1775350247183,-150.0,0.00014759,2]
[419743585,1775350247193,-150.0,0.00014774,2]
[419743586,1775350247203,-512.0,0.00014783,3]
[419743587,1775350247213,-150.0,0.00014784,2]
[419743588,1775350247222,-150.0,0.00014788,2]
[419743589,1775350247232,-150.0,0.00014792,2]
[419743590,1775350247241,-500.0,0.00014794,2]
[419743591,1775350247251,-500.0,0.00014794,2]
[419743592,1775350247260,-500.0,0.00014794,2]
[419743593,1775350247270,-417.0959856,0.00014794,2]
[419743594,1775350247280,-500.0,0.00014794,2]
[419743595,1775350247291,-500.0,0.00014794,2]
[419743596,1775350247301,-500.0,0.00014794,2]
[419743597,1775350247312,-500.0,0.00014794,2]
[419743598,1775350247324,-500.0,0.00014794,2]
[419743599,1775350247334,-340.67,0.00014794,2]
[419743600,1775350247345,-713.02,0.00014794,2]
[419743601,1775350247355,-713.02,0.00014794,2]
[419743602,1775350247365,-713.02,0.00014794,2]
[419743603,1775350247375,-713.02,0.00014794,2]
[419743604,1775350247385,-713.25,0.00014794,2]
[419743605,1775350247395,-500.0,0.00014794,2]
[419743606,1775350247405,-611.67,0.00014794,2]
[419743607,1775350247416,-500.0,0.00014794,2]
[419743608,1775350247426,-1501.43710211,0.00014795,2]
[419743609,1775350247436,-1500.0,0.00014795,2]
[419743610,1775350247446,-1500.0,0.00014795,2]
[419743611,1775350247455,-952.51047759,0.00014795,2]
[419743612,1775350247465,-1513.6791618,0.00014795,2]
[419743613,1775350247475,-1500.0,0.00014795,2]
[419743614,1775350247485,-1500.0,0.00014795,2]
[419743615,1775350247496,-1505.91875893,0.00014795,2]
[419743616,1775350247505,-1500.0,0.00014795,2]
[419743617,1775350247514,-1500.0,0.00014795,2]
[419743618,1775350247524,-1534.13936617,0.00014795,2]
[419743619,1775350247534,-1500.0,0.00014795,2]
[419743620,1775350247545,-1500.0,0.00014795,2]
[419743621,1775350247556,-1412.47132242,0.00014795,2]
[419743622,1775350247566,-1500.0,0.00014795,2]
[419743623,1775350247577,-501.3800559,0.00014795,2]
[419743624,1775350247587,-1500.0,0.00014795,2]
[419743625,1775350247598,-1500.0,0.00014795,2]
[419743626,1775350247608,-1500.0,0.00014795,2]
[419743627,1775350247617,-727.11140597,0.00014795,2]
[419743628,1775350247627,-1500.0,0.00014795,2]
[419743629,1775350247636,-1500.0,0.00014795,2]
[419743630,1775350247646,-1500.0,0.00014795,2]
[419743631,1775350247657,-1500.0,0.00014795,2]
[419743632,1775350247666,-1500.0,0.00014795,2]
[419743633,1775350247676,-1500.0,0.00014795,2]
[419743634,1775350247686,-1500.0,0.00014795,2]
[419743635,1775350247696,-417.87254797,0.00014795,2]
[419743636,1775350247705,-1500.0,0.00014795,2]
[419743637,1775350247715,-1500.0,0.00014795,2]
[419743638,1775350247724,-1500.0,0.00014795,2]
[419743639,1775350247817,-1500.0,0.00014795,2]
[419743640,1775350247827,-1500.0,0.00014795,2]
[419743641,1775350247836,-1500.0,0.00014795,2]
[419743642,1775350247845,-1500.0,0.00014795,2]
[419743643,1775350247854,-150.0,0.000148,2]
[419743644,1775350247863,-150.0,0.00014809,2]
[419743645,1775350247872,-150.0,0.00014815,2]
[419743646,1775350247883,-150.0,0.00014824,2]
[419743647,1775350247894,-150.0,0.00014836,2]
[419743648,1775350247904,-150.0,0.00014843,2]
[419743649,1775350247916,-150.0,0.00014844,2]
[419743650,1775350247925,-150.0,0.00014844,2]
[419743651,1775350247937,-150.0,0.00014848,2]
[419743652,1775350247947,-150.0,0.00014857,2]
[419743653,1775350247958,-150.0,0.00014874,2]
[419743654,1775350247967,-150.0,0.00014877,2]
[419743655,1775350247976,-2808.4502313,0.00014884,2]
[419743656,1775350247984,-4563.7972219,0.00014884,2]
[419743657,1775350247994,-112331.8381389,0.00014884,2]
[419743658,1775350248003,-160685.9871154,0.00014884,2]
[419743659,1775350248012,-332.258443,0.00014884,2]
[419743660,1775350248021,-332.258443,0.00014884,2]
[419743661,1775350248031,-332.258443,0.00014884,2]
[419743662,1775350248039,-332.258443,0.00014884,2]
[419743663,1775350248049,-850.9443,0.00014884,2]
[419743664,1775350248058,-850.9443,0.00014884,2]
[419743665,1775350248066,-850.9443,0.00014884,2]
[419743666,1775350248076,-850.9443,0.00014884,2]
[419743667,1775350248085,-552.096032,0.00014884,2]
[419743668,1775350248094,-552.096032,0.00014884,2]
[419743669,1775350248103,-552.096032,0.00014884,2]
[419743670,1775350248111,-552.096032,0.00014884,2]
[419743671,1775350248120,-151.0,0.00014884,2]
[419743672,1775350248129,-151.0,0.00014884,2]
[419743673,1775350248138,-151.0,0.00014884,2]
[419743674,1775350248147,-151.0,0.00014884,2]
[419743675,1775350248156,-151.0,0.00014884,2]
[419743676,1775350248164,-151.0,0.00014884,2]
[419743677,1775350248174,-150.0,0.00014885,2]
[419743678,1775350248183,-150.0,0.0001489,2]
[419743679,1775350248192,-2700.0,0.000149,5]
[419743680,1775350248201,-150.0,0.00014911,2]
[419743681,1775350248210,-150.0,0.00014912,2]
[419743682,1775350248219,-150.0,0.00014922,2]
[419743683,1775350248227,-150.0,0.00014933,2]
[419743684,1775350248237,-150.0,0.00014933,2]
[419743685,1775350248246,-150.0,0.00014933,2]
[419743686,1775350248255,-150.0,0.00014933,2]
[419743687,1775350248265,-150.0,0.00014933,2]
[419743688,1775350248274,-150.0,0.00014945,2]
[419743689,1775350248283,-150.0,0.00014955,2]
[419743690,1775350248292,-12075.1711856,0.00014975,2]
[419743691,1775350248302,-150.0,0.00014976,2]
[419743692,1775350248311,-150.0,0.00014979,2]
[419743693,1775350248320,-150.0,0.00014982,2]
[419743694,1775350248330,-150.0,0.00014988,2]
[419743695,1775350248339,-150.0,0.00014993,2]
[419743696,1775350248348,-1263.67656,0.00015,2]
[419743697,1775350248358,-300.0,0.00015,2]
[419743698,1775350248367,-150.0,0.00015,2]
[419743699,1775350248376,-150.0,0.00015013,2]
[419743700,1775350248385,-150.0,0.0001502,2]
[419743701,1775350248394,-150.0,0.00015022,2]
[419743702,1775350248403,-150.0,0.00015022,2]
[419743703,1775350248412,-150.0,0.0001503,2]
[419743704,1775350248421,-150.0,0.0001504,2]
[419743705,1775350248430,-150.0,0.00015047,2]
[419743706,1775350248439,-150.0,0.00015052,2]
[419743707,1775350248448,-150.0,0.00015053,2]
[419743708,1775350248457,-5504.06,0.00015068,2]
[419743709,1775350248467,-671.642046,0.00015068,2]
[419743710,1775350248476,-671.642046,0.00015068,2]
[419743711,1775350248485,-671.642046,0.00015068,2]
[419743712,1775350248494,-671.642046,0.00015068,2]
[419743713,1775350248504,-150.0,0.00015079,2]
[419743714,1775350248513,-150.0,0.00015081,2]
[419743715,1775350248522,-150.0,0.00015086,2]
[419743716,1775350248531,-150.0,0.00015104,2]
[419743717,1775350248541,-150.0,0.00015111,2]
[419743718,1775350248550,-150.0,0.00015111,2]
[419743719,1775350248559,-150.0,0.00015111,2]
[419743720,1775350248568,-150.0,0.00015111,2]
[419743721,1775350248578,-150.0,0.00015115,2]
[419743722,1775350248588,-150.0,0.00015118,2]
[419743723,1775350248598,-150.0,0.00015127,2]
[419743724,1775350248609,-4357.30512804,0.00015129,2]
[419743725,1775350248618,-150.0,0.00015149,2]
[419743726,1775350248628,-150.0,0.00015151,2]
[419743727,1775350248638,-523.08,0.00015161,2]
[419743728,1775350248647,-191.92,0.00015165,2]
[419743729,1775350248656,-150.0,0.00015168,2]
[419743730,1775350248665,-150.0,0.0001517,2]
[419743731,1775350248674,-44309.71829211,0.00015176,2]
[419743732,1775350248683,-150.0,0.00015176,2]
[419743733,1775350248692,-150.0,0.00015183,2]
[419743734,1775350248702,-150.0,0.00015184,2]
[419743735,1775350248711,-523.08,0.00015194,2]
[419743736,1775350248720,-578.20924308,0.00015199,2]
[419743737,1775350248729,-1428.38747117,0.00015199,2]
[419743738,1775350248738,-500.0,0.00015199,2]
[419743739,1775350248747,-209.40437684,0.00015199,2]
[419743740,1775350248756,-500.0,0.00015199,2]
[419743741,1775350248765,-500.0,0.00015199,2]
[419743742,1775350248774,-200.0,0.00015199,2]
[419743743,1775350248784,-812.25117828,0.00015199,2]
[419743744,1775350248793,-500.0,0.00015199,2]
[419743745,1775350248802,-500.0,0.00015199,2]
[419743746,1775350248811,-500.0,0.00015199,2]
[419743747,1775350248820,-500.0,0.00015199,2]
[419743748,1775350248829,-151.0,0.00015199,2]
[419743749,1775350248838,-500.0,0.00015199,2]
[419743750,1775350248847,-151.0,0.00015199,2]
[419743751,1775350248856,-500.0,0.00015199,2]
[419743752,1775350248865,-151.0,0.00015199,2]
[419743753,1775350248874,-500.0,0.00015199,2]
[419743754,1775350248883,-151.0,0.00015199,2]
[419743755,1775350248892,-500.0,0.00015199,2]
[419743756,1775350248902,-500.0,0.00015199,2]
[419743757,1775350248912,-250.0,0.00015199,2]
[419743758,1775350248922,-250.0,0.00015199,2]
[419743759,1775350248932,-250.0,0.00015199,2]
[419743760,1775350248942,-250.0,0.00015199,2]
[419743761,1775350248953,-209.40437684,0.00015199,2]
[419743762,1775350248963,-250.0,0.00015199,2]
[419743763,1775350248973,-250.0,0.00015199,2]
[419743764,1775350248983,-250.0,0.00015199,2]
[419743765,1775350248992,-250.0,0.00015199,2]
[419743766,1775350249002,-250.0,0.00015199,2]
[419743767,1775350249011,-250.0,0.00015199,2]
[419743768,1775350249020,-250.0,0.00015199,2]
[419743769,1775350249029,-500.0,0.00015199,2]
[419743770,1775350249038,-500.0,0.00015199,2]
[419743771,1775350249047,-500.0,0.00015199,2]
[419743772,1775350249056,-500.0,0.00015199,2]
[419743773,1775350249066,-174.61919141,0.00015199,2]
[419743774,1775350249075,-500.0,0.00015199,2]
[419743775,1775350249084,-500.0,0.00015199,2]
[419743776,1775350249093,-500.0,0.00015199,2]
[419743777,1775350249103,-151.0,0.00015199,2]
[419743778,1775350249112,-500.0,0.00015199,2]
[419743779,1775350249121,-743.50770149,0.00015199,2]
[419743780,1775350249131,-500.0,0.00015199,2]
[419743781,1775350249140,-500.0,0.00015199,2]
[419743782,1775350249149,-500.0,0.00015199,2]
[419743783,1775350249158,-200.0,0.00015199,2]
[419743784,1775350249167,-279.9045709,0.00015199,2]
[419743785,1775350249178,-156.959134,0.00015199,2]
[419743786,1775350249188,-170.0,0.00015199,2]
[419743787,1775350249198,-170.0,0.00015199,2]
[419743788,1775350249207,-170.0,0.00015199,2]
[419743789,1775350249217,-170.0,0.00015199,2]
[419743790,1775350249227,-170.0,0.00015199,2]
[419743791,1775350249237,-170.0,0.00015199,2]
[419743792,1775350249248,-500.0,0.00015199,2]
[419743793,1775350249257,-170.0,0.00015199,2]
[419743794,1775350249268,-500.0,0.00015199,2]
[419743795,1775350249279,-170.0,0.00015199,2]
[419743796,1775350249289,-500.0,0.00015199,2]
[419743797,1775350249299,-170.0,0.00015199,2]
[419743798,1775350249309,-500.0,0.00015199,2]
[419743799,1775350249319,-170.0,0.00015199,2]
[419743800,1775350249328,-500.0,0.00015199,2]
[419743801,1775350249337,-170.0,0.00015199,2]
[419743802,1775350249347,-8599.15138026,0.000152,2]
[419743803,1775350249358,-5000.0,0.000152,2]
[419743804,1775350249368,-5000.0,0.000152,2]
[419743805,1775350249377,-5000.0,0.000152,2]
[419743806,1775350249387,-5000.0,0.000152,2]
[419743807,1775350249396,-150.0,0.000152,2]
[419743808,1775350249406,-150.0,0.000152,2]
[419743809,1775350249415,-150.0,0.000152,2]
[419743810,1775350249426,-150.0,0.000152,2]
[419743811,1775350249436,-4609.0,0.00015201,2]
[419743812,1775350249446,-191.92,0.00015201,2]
[419743813,1775350249457,-10000.0,0.00015205,2]
[419743814,1775350249466,-150.0,0.00015216,2]
[419743815,1775350249476,-150.0,0.00015217,2]
[419743816,1775350249485,-150.0,0.00015224,2]
[419743817,1775350249494,-150.0,0.0001523,2]
[419743818,1775350249505,-150.0,0.00015232,2]
[419743819,1775350249516,-191.91241686,0.00015237,2]
[419743820,1775350249526,-150.0,0.00015249,2]
[419743821,1775350249536,-150.0,0.00015251,2]
[419743822,1775350249546,-500.0,0.00015254,2]
[419743823,1775350249555,-151.0,0.00015254,2]
[419743824,1775350249565,-500.0,0.0001526,2]
[419743825,1775350249574,-881.58,0.00015265,2]
[419743826,1775350249584,-150.0,0.00015273,2]
[419743827,1775350249593,-150.0,0.00015282,2]
[419743828,1775350249603,-150.0,0.00015285,2]
[419743829,1775350249613,-150.0,0.00015289,2]
[419743830,1775350249623,-150.0,0.00015289,2]
[419743831,1775350249633,-150.0,0.00015289,2]
[419743832,1775350249642,-150.0,0.00015289,2]
[419743833,1775350249652,-150.0,0.00015296,2]
[419743834,1775350249662,-1252.0,0.00015305,2]
[419743835,1775350249671,-320.31,0.00015305,2]
[419743836,1775350249681,-500.0,0.00015309,2]
[419743837,1775350249691,-151.0,0.00015309,2]
[419743838,1775350249701,-150.0,0.00015314,2]
[419743839,1775350249712,-150.0,0.00015319,2]
[419743840,1775350249722,-150.0,0.00015321,2]
[419743841,1775350249734,-1152.0,0.00015334,2]
[419743842,1775350249745,-733.7,0.00015342,2]
[419743843,1775350249755,-733.7,0.00015342,2]
[419743844,1775350249766,-733.7,0.00015342,2]
[419743845,1775350249776,-733.7,0.00015342,2]
[419743846,1775350249786,-733.71615524,0.00015342,2]
[419743847,1775350249795,-1973.12015753,0.00015342,2]
[419743848,1775350249806,-1312.53113811,0.00015342,2]
[419743849,1775350249816,-2000.0,0.00015342,2]
[419743850,1775350249825,-567.72486968,0.00015342,2]
[419743851,1775350249836,-1688.40853878,0.00015342,2]
[419743852,1775350249846,-691.52484632,0.00015342,2]
[419743853,1775350249856,-2000.0,0.00015342,2]
[419743854,1775350249867,-2000.0,0.00015342,2]
[419743855,1775350249877,-642.58837708,0.00015342,2]
[419743856,1775350249887,-503.72831148,0.00015342,2]
[419743857,1775350249899,-1505.86237591,0.00015342,2]
[419743858,1775350249909,-914.53177874,0.00015342,2]
[419743859,1775350249919,-2000.0,0.00015342,2]
[419743860,1775350249929,-2000.0,0.00015342,2]
[419743861,1775350249938,-2000.0,0.00015342,2]
[419743862,1775350249947,-2000.0,0.00015342,2]
[419743863,1775350249956,-2000.0,0.00015342,2]
[419743864,1775350249966,-2000.0,0.00015342,2]
[419743865,1775350249975,-2000.0,0.00015342,2]
[419743866,1775350249985,-2000.0,0.00015342,2]
[419743867,1775350249995,-1346.12622015,0.00015342,2]
[419743868,1775350250005,-2085.8671148,0.00015342,2]
[419743869,1775350250014,-2000.0,0.00015342,2]
[419743870,1775350250024,-2000.0,0.00015342,2]
[419743871,1775350250033,-2000.0,0.00015342,2]
[419743872,1775350250042,-2000.0,0.00015342,2]
[419743873,1775350250052,-150.0,0.00015347,2]
[419743874,1775350250063,-150.0,0.00015348,2]
[419743875,1775350250073,-150.0,0.00015353,2]
[419743876,1775350250082,-150.0,0.0001536,2]
[419743877,1775350250093,-500.0,0.00015363,2]
[419743878,1775350250104,-224.92074635,0.00015363,2]
[419743879,1775350250115,-611.67,0.00015363,2]
[419743880,1775350250124,-611.67,0.00015363,2]
[419743881,1775350250134,-611.67,0.00015363,2]
[419743882,1775350250143,-611.67,0.00015363,2]
[419743883,1775350250152,-611.79,0.00015363,2]
[419743884,1775350250162,-500.0,0.00015363,2]
[419743885,1775350250172,-474.02553387,0.00015363,2]
[419743886,1775350250181,-500.0,0.00015364,2]
[419743887,1775350250191,-151.0,0.00015364,2]
[419743888,1775350250200,-150.0,0.0001537,2]
[419743889,1775350250210,-150.0,0.00015378,2]
[419743890,1775350250219,-150.0,0.00015378,2]
[419743891,1775350250228,-150.0,0.0001538,2]
[419743892,1775350250238,-150.0,0.00015387,2]
[419743893,1775350250247,-150.0,0.000154,2]
[419743894,1775350250256,-350.0,0.00015405,2]
[419743895,1775350250266,-150.0,0.00015407,2]
[419743896,1775350250275,-150.0,0.00015412,2]
[419743897,1775350250285,-150.0,0.00015418,2]
[419743898,1775350250295,-500.0,0.00015419,2]
[419743899,1775350250304,-151.0,0.00015419,2]
[419743900,1775350250313,-150.0,0.00015421,2]
[419743901,1775350250323,-150.0,0.00015424,2]
[419743902,1775350250332,-350.0,0.00015434,2]
[419743903,1775350250342,-150.0,0.00015445,2]
[419743904,1775350250351,-150.0,0.00015455,2]
[419743905,1775350250361,-3250.40513332,0.00015466,2]
[419743906,1775350250371,-451.56062963,0.00015466,2]
[419743907,1775350250380,-150.0,0.00015467,2]
[419743908,1775350250390,-150.0,0.00015467,2]
[419743909,1775350250400,-150.0,0.00015467,2]
[419743910,1775350250411,-150.0,0.00015467,2]
[419743911,1775350250422,-150.0,0.00015467,2]
[419743912,1775350250432,-500.0,0.00015474,2]
[419743913,1775350250441,-151.0,0.00015474,2]
[419743914,1775350250452,-150.0,0.00015478,2]
[419743915,1775350250463,-368.52,0.00015483,2]
[419743916,1775350250473,-150.0,0.00015488,2]
[419743917,1775350250483,-150.0,0.00015489,2]
[419743918,1775350250493,-150.0,0.0001551,2]
[419743919,1775350250502,-150.0,0.00015515,2]
[419743920,1775350250512,-150.0,0.00015523,2]
[419743921,1775350250522,-150.0,0.00015526,2]
[419743922,1775350250531,-500.0,0.00015529,2]
[419743923,1775350250540,-151.0,0.00015529,2]
[419743924,1775350250550,-881.58,0.00015539,2]
[419743925,1775350250559,-150.0,0.00015543,2]
[419743926,1775350250569,-150.0,0.00015552,2]
[419743927,1775350250580,-150.0,0.00015556,2]
[419743928,1775350250589,-150.0,0.00015556,2]
[419743929,1775350250599,-150.0,0.00015557,2]
[419743930,1775350250608,-150.0,0.00015564,2]
[419743931,1775350250619,-150.0,0.00015576,2]
[419743932,1775350250628,-500.0,0.00015584,2]
[419743933,1775350250638,-151.0,0.00015584,2]
[419743934,1775350250648,-150.0,0.00015585,2]
[419743935,1775350250657,-150.0,0.00015591,2]
[419743936,1775350250666,-150.0,0.000156,2]
[419743937,1775350250676,-150.0,0.00015608,2]
[419743938,1775350250686,-150.0,0.00015612,2]
[419743939,1775350250695,-150.0,0.00015616,2]
[419743940,1775350250705,-150.0,0.00015626,2]
[419743941,1775350250714,-500.0,0.00015639,2]
[419743942,1775350250725,-151.0,0.00015639,2]
[419743943,1775350250735,-150.0,0.00015641,2]
[419743944,1775350250744,-150.0,0.00015644,2]
[419743945,1775350250753,-150.0,0.00015644,2]
[419743946,1775350250763,-150.0,0.00015644,2]
[419743947,1775350250772,-150.0,0.00015644,2]
[419743948,1775350250782,-150.0,0.0001566,2]
[419743949,1775350250792,-150.0,0.00015661,2]
[419743950,1775350250802,-350.0,0.00015661,2]
[419743951,1775350250813,-150.0,0.00015673,2]
[419743952,1775350250823,-150.0,0.0001568,2]
[419743953,1775350250832,-150.0,0.00015694,2]
[419743954,1775350250842,-500.0,0.00015694,2]
[419743955,1775350250851,-151.0,0.00015694,2]
[419743956,1775350250860,-150.0,0.00015704,2]
[419743957,1775350250870,-150.0,0.00015706,2]
[419743958,1775350250879,-150.0,0.00015709,2]
[419743959,1775350250888,-150.0,0.00015728,2]
[419743960,1775350250898,-150.0,0.00015733,2]
[419743961,1775350250907,-150.0,0.00015733,2]
[419743962,1775350250917,-150.0,0.00015739,2]
[419743963,1775350250927,-150.0,0.00015744,2]
[419743964,1775350250936,-1481.23780761,0.00015747,2]
[419743965,1775350250946,-217.15233878,0.00015747,2]
[419743966,1775350250955,-200.0,0.00015747,2]